bitfinex/quotes_ETHUSD_20260108
["timestamp","ask_amount","ask_price","bid_price","bid_amount"]
[1767867239567,0.93919587,3109.6,3108.8,0.9423203]
[1767867239801,0.001,3109.6,3108.8,0.9423203]
[1767867240182,0.93819587,3109.5,3108.5,4.47823119]
[1767867240493,0.93819587,3109.4,3108.5,7.69516119]
[1767867240794,3.25623574,3109.5,3108.0,4.7223203]
[1767867240795,0.93819587,3109.1,3108.0,4.7223203]
[1767867241097,0.93819587,3108.9,3108.2,3.21724401]
[1767867241310,0.93819587,3108.9,3108.1,4.16990024]
[1767867241466,0.93819587,3108.9,3108.1,4.0726012]
[1767867241668,0.93819587,3108.9,3108.2,3.21728302]
[1767867241969,3.63323119,3109.3,3108.4,3.21708816]
[1767867242195,3.63323119,3109.3,3108.4,0.9423203]
[1767867242196,0.04020326,3109.2,3108.4,0.9423203]
[1767867242697,0.98830751,3109.0,3108.1,1.83870408]
[1767867242869,0.98830751,3108.8,3108.1,0.845]
[1767867243065,0.98830751,3108.8,3108.1,1.40687041]
[1767867243867,0.91496867,3108.4,3108.0,0.01022406]
[1767867244087,0.91496867,3108.4,3107.8,0.844]
[1767867244697,0.91496867,3108.4,3107.7,4.06177553]
[1767867245773,0.91496867,3108.4,3107.5,0.002]
[1767867245990,0.91496867,3108.3,3107.5,4.0742426]
[1767867246188,7.76512913,3108.6,3107.7,0.95019273]
[1767867246623,4.13189794,3108.6,3107.7,4.16796826]
[1767867246917,0.91496867,3108.6,3107.8,0.95019273]
[1767867247929,0.91496867,3109.3,3107.8,0.95019273]
[1767867248077,3.21626141,3109.2,3108.0,0.95019273]
[1767867248379,3.21626141,3109.2,3107.7,6.43559966]
[1767867248380,0.91496867,3109.3,3108.2,0.95019273]
[1767867248602,3.25631922,3109.4,3108.5,0.95019273]
[1767867249141,6.47243026,3109.4,3108.5,0.95019273]
[1767867249440,0.91496867,3109.3,3108.5,0.95019273]
[1767867249763,3.21690575,3109.6,3108.6,0.96040464]
[1767867249898,3.21690575,3109.6,3108.7,0.95019273]
[1767867250493,0.001,3109.6,3108.7,0.95019273]
[1767867250719,0.001,3109.6,3108.9,0.95019273]
[1767867252402,0.001,3109.6,3108.9,0.96039576]
[1767867252601,0.001,3109.6,3109.0,0.844]
[1767867253206,0.001,3109.6,3109.1,0.17941927]
[1767867253433,0.001,3109.6,3109.1,1.129612]
[1767867255224,0.91596867,3109.6,3108.7,0.01020142]
[1767867255434,0.91596867,3109.6,3108.1,3.21735191]
[1767867255435,0.91496867,3109.4,3108.4,3.21701895]
[1767867255621,0.91496867,3109.4,3108.3,0.95019273]
[1767867255933,0.91496867,3109.4,3108.3,0.844]
[1767867256154,0.91496867,3109.4,3108.4,0.40714457]
[1767867256554,0.04020197,3109.3,3108.4,0.40714457]
[1767867256733,0.91496867,3109.1,3108.4,0.40714457]
[1767867257060,0.95517323,3109.1,3108.0,0.844]
[1767867257274,0.95517323,3109.1,3108.0,0.8542218]
[1767867257440,0.95517323,3109.1,3108.1,3.21734657]
[1767867257636,0.95517323,3109.1,3108.2,3.21727829]
[1767867258163,0.95517323,3109.1,3108.1,3.21736532]
[1767867258925,0.91496867,3109.0,3108.1,3.21739969]
[1767867259951,0.91496867,3109.0,3108.1,6.43479938]
[1767867260164,0.91496867,3109.3,3108.2,0.96041387]
[1767867260659,0.001,3109.1,3108.2,0.96041387]
[1767867260857,0.001,3109.1,3108.4,0.95019273]
[1767867261160,0.001,3109.1,3108.5,1.79419273]
[1767867263664,0.001,3109.1,3108.6,0.96040756]
[1767867264257,0.001,3109.1,3108.6,0.844]
[1767867265568,0.001,3109.1,3108.6,4.06085024]
[1767867265768,0.001,3109.1,3108.7,0.40710636]
[1767867266287,0.91596867,3109.1,3108.1,3.78]
[1767867266588,0.91596867,3109.1,3108.3,3.21713743]
[1767867267086,0.91596867,3109.1,3108.4,3.21707278]
[1767867267588,0.91496867,3109.0,3108.2,4.06126023]
[1767867267792,0.91496867,3109.0,3108.2,0.844]
[1767867268092,0.91496867,3109.0,3108.2,3.21728129]
[1767867269073,0.91496867,3109.0,3108.1,7.84136569]
[1767867269396,0.91496867,3109.0,3108.1,4.06136569]
[1767867269582,0.91496867,3108.9,3108.1,4.06136569]
[1767867270196,0.91496867,3108.9,3108.1,7.27876538]
[1767867270374,0.91496867,3108.9,3108.1,8.22895811]
[1767867271278,0.91496867,3108.9,3108.2,0.01022227]
[1767867271686,0.91496867,3108.9,3108.3,3.21719267]
[1767867272374,0.91496867,3108.9,3108.2,3.21728014]
[1767867272581,0.91496867,3108.9,3108.2,3.21729409]
[1767867272922,0.91496867,3108.9,3108.4,0.002]
[1767867273124,0.9957089,3109.1,3108.4,0.01221822]
[1767867273796,0.9957089,3109.1,3108.4,0.002]
[1767867274110,0.9947089,3109.0,3108.4,0.002]
[1767867275097,0.9947089,3109.0,3108.4,3.22930297]
[1767867275300,0.9947089,3109.0,3108.5,0.4129326]
[1767867275614,0.9947089,3109.0,3108.4,0.002]
[1767867277096,0.9947089,3109.0,3108.4,0.01221709]
[1767867277608,0.9947089,3109.0,3108.4,3.22930232]
[1767867278411,0.9947089,3109.0,3108.4,0.01221709]
[1767867278705,0.9947089,3109.0,3108.4,3.22930496]
[1767867279908,0.9947089,3109.0,3108.4,0.01221709]
[1767867280509,0.9947089,3109.0,3108.4,0.002]
[1767867281294,1.03491604,3108.9,3108.2,0.844]
[1767867281914,0.9947089,3108.7,3108.2,0.844]
[1767867283488,0.9947089,3108.7,3108.0,0.002]
[1767867283795,0.9947089,3108.5,3108.0,0.002]
[1767867284412,0.9947089,3108.4,3108.0,0.002]
[1767867285592,0.9947089,3108.4,3108.1,0.002]
[1767867285913,0.9947089,3108.4,3108.0,0.002]
[1767867286318,0.9947089,3108.3,3108.0,0.002]
[1767867286693,0.9947089,3108.2,3108.0,0.002]
[1767867287530,0.9947089,3108.2,3107.6,0.002]
[1767867288104,0.9947089,3108.0,3107.6,0.002]
[1767867291898,0.9947089,3108.2,3107.6,0.90202308]
[1767867292103,4.21184769,3108.4,3107.6,0.90202308]
[1767867292307,4.21161008,3108.6,3107.8,0.90002308]
[1767867292512,0.04021232,3108.5,3107.8,0.90002308]
[1767867292688,0.04020973,3108.7,3107.8,0.90002308]
[1767867292890,1.03491863,3108.7,3107.8,1.07462539]
[1767867293105,4.21161396,3108.6,3107.8,1.07462539]
[1767867293332,0.04021232,3108.5,3107.8,1.07462539]
[1767867295227,3.25721043,3108.5,3107.8,1.07462539]
[1767867295523,0.9947089,3108.4,3107.6,0.90202308]
[1767867295819,0.9947089,3108.4,3107.7,4.11774831]
[1767867296026,0.9947089,3108.4,3107.8,0.90002308]
[1767867297431,0.9947089,3108.4,3107.9,0.002]
[1767867298210,0.001,3108.2,3107.9,0.002]
[1767867301097,0.9947089,3108.1,3107.6,0.002]
[1767867302528,0.96180006,3108.0,3107.6,0.002]
[1767867302733,3.2174313,3108.1,3107.1,0.002]
[1767867302734,0.96180006,3107.8,3107.1,0.002]
[1767867305005,0.96180006,3107.8,3107.1,0.9582609]
[1767867305206,0.96180006,3107.8,3107.2,0.50207925]
[1767867305899,4.1795197,3107.8,3107.2,0.50207925]
[1767867306099,0.96180006,3107.5,3106.9,0.002]
[1767867306533,3.63041601,3107.3,3106.9,0.002]
[1767867307016,4.59221607,3107.4,3106.9,0.002]
[1767867307216,3.63041601,3107.2,3106.9,0.002]
[1767867307412,0.96180006,3106.9,3106.4,0.002]
[1767867307606,3.21764922,3107.9,3106.4,0.002]
[1767867307607,0.96180006,3108.1,3106.9,0.9562609]
[1767867307807,0.96180006,3108.0,3107.1,0.9562609]
[1767867308002,0.96180006,3108.0,3107.3,0.9562609]
[1767867308207,0.001,3108.2,3107.5,0.9562609]
[1767867308654,0.001,3108.2,3107.8,0.9562609]
[1767867308856,0.001,3108.2,3107.9,0.01023586]
[1767867309058,0.96180006,3108.8,3107.9,0.96649676]
[1767867309258,4.21853651,3109.0,3108.1,0.9562609]
[1767867309478,5.34084711,3108.9,3108.1,0.9562609]
[1767867309647,0.04020844,3108.8,3108.1,0.9562609]
[1767867310574,5.34084711,3108.9,3108.1,0.9562609]
[1767867310575,4.92702003,3108.9,3108.1,0.9562609]
[1767867310872,1.00704895,3108.8,3108.1,0.9562609]
[1767867311080,4.18335515,3109.0,3108.1,4.17364852]
[1767867311287,0.001,3109.1,3108.2,0.95451366]
[1767867311670,0.001,3109.1,3108.4,0.95451366]
[1767867312174,0.96784051,3109.1,3108.4,0.95451366]
[1767867312482,4.22442794,3109.1,3108.4,0.95451366]
[1767867312855,1.00804507,3109.1,3108.4,0.95451366]
[1767867313042,0.42243352,3109.0,3108.3,0.845]
[1767867314367,0.42243352,3109.0,3108.3,1.79951366]
[1767867315573,0.42243352,3109.0,3108.4,0.95451366]
[1767867315775,0.001,3109.1,3108.4,0.95451366]
[1767867317180,0.04120456,3109.1,3108.4,0.95451366]
[1767867317486,1.00804507,3109.1,3108.4,0.844]
[1767867317668,0.96784051,3109.1,3108.4,0.844]
[1767867317861,0.96784051,3109.1,3108.4,1.79851366]
[1767867318590,0.001,3109.1,3108.6,0.95451366]
[1767867323379,0.001,3108.8,3108.6,0.95451366]
[1767867326078,0.001,3108.8,3108.6,4.1713788]
[1767867326384,0.001,3109.1,3108.7,0.96472977]
[1767867326593,0.001,3109.1,3108.8,0.41815949]
[1767867326792,0.001,3109.1,3108.9,0.01020981]
[1767867327288,0.001,3109.1,3108.8,1.37267315]
[1767867328369,0.001,3109.6,3108.9,0.96472347]
[1767867328583,0.001,3109.6,3109.0,0.95451366]
[1767867329484,0.001,3109.6,3109.2,0.95451366]
[1767867329789,0.001,3109.6,3109.2,0.844]
[1767867329975,0.96784051,3109.6,3109.2,0.844]
[1767867331782,0.96784051,3109.6,3108.5,0.95451366]
[1767867331993,0.96684051,3109.4,3108.6,0.844]
[1767867332167,0.96684051,3109.4,3108.6,0.01020853]
[1767867332373,0.96684051,3109.4,3108.7,0.844]
[1767867333392,4.59184765,3109.4,3108.7,0.17985137]
[1767867333592,0.9716037,3109.3,3108.4,3.21702243]
[1767867333891,0.9716037,3109.3,3108.5,0.844]
[1767867334065,0.9716037,3109.3,3108.5,4.06089719]
[1767867334483,0.9716037,3109.3,3108.5,4.06095174]
[1767867335090,0.93140173,3109.3,3108.5,4.06095174]
[1767867335269,0.93140173,3109.3,3108.6,0.82605746]
[1767867335463,0.93240173,3109.3,3108.6,0.82605746]
[1767867337363,0.93240173,3109.3,3108.5,5.04346709]
[1767867338487,0.93240173,3109.3,3108.6,3.21683332]
[1767867338994,0.93240173,3109.3,3108.5,5.04351132]
[1767867339168,0.93240173,3109.3,3108.5,1.82654744]
[1767867339362,0.9726037,3109.3,3108.5,1.82654744]
[1767867339566,0.93140173,3109.2,3108.5,1.82654744]
[1767867339985,0.93140173,3109.2,3108.5,2.33193178]
[1767867341195,0.93140173,3109.2,3108.5,1.82654744]
[1767867342196,0.93140173,3109.2,3108.5,0.98254744]
[1767867342366,0.93140173,3109.2,3108.5,0.844]
[1767867347179,0.93140173,3109.2,3108.8,0.002]
[1767867353309,0.001,3109.3,3108.8,0.002]
[1767867354021,0.9726037,3109.3,3108.8,0.002]
[1767867354216,0.93240173,3109.3,3108.8,0.002]
[1767867354718,0.97160499,3109.2,3108.8,0.002]
[1767867355116,0.97160499,3109.2,3108.5,0.002]
[1767867355117,0.93140173,3109.0,3108.5,0.846]
[1767867355920,0.93140173,3108.8,3108.5,0.002]
[1767867356635,0.93140173,3109.1,3108.5,0.002]
[1767867357005,0.93240173,3109.3,3108.5,0.98454744]
[1767867357206,0.93240173,3109.3,3108.5,0.99476195]
[1767867357500,0.93240173,3109.3,3108.6,0.98254744]
[1767867357726,0.93240173,3109.3,3108.7,0.01021045]
[1767867358089,0.93240173,3109.3,3108.6,0.98254744]
[1767867358321,4.18878871,3109.3,3108.6,0.98254744]
[1767867358620,4.14858674,3109.3,3108.6,0.98254744]
[1767867358934,0.93240173,3109.3,3108.7,0.98254744]
[1767867359101,0.001,3109.3,3108.9,0.98254744]
[1767867359421,0.001,3109.3,3108.7,1.82654744]
[1767867359595,0.001,3109.3,3108.9,0.002]
[1767867360397,0.001,3109.3,3108.9,0.98454744]
[1767867360596,0.001,3109.3,3108.9,1.48907794]
[1767867361017,0.001,3109.3,3109.1,0.98254744]
[1767867362529,0.001,3109.3,3108.9,0.91635439]
[1767867362737,0.99381423,3109.3,3108.9,0.002]
[1767867362900,0.99381423,3109.3,3108.9,0.846]
[1767867363225,0.001,3109.3,3108.9,1.76035439]
[1767867363400,0.001,3109.3,3109.0,0.17603544]
[1767867364026,0.001,3109.3,3109.0,1.1451499]
[1767867364839,0.001,3109.3,3109.1,0.97931908]
[1767867365003,0.001,3109.3,3109.0,0.17603544]
[1767867365337,0.001,3109.3,3108.9,0.846]
[1767867365624,0.001,3109.3,3108.9,1.81511446]
[1767867365933,0.001,3109.3,3109.0,0.96911446]
[1767867366823,0.93454485,3109.6,3109.0,0.96911446]
[1767867367493,0.001,3109.6,3109.0,0.96911446]
[1767867367697,0.001,3109.6,3109.1,1.15062591]
[1767867367923,4.15040958,3109.6,3109.1,0.18151145]
[1767867368429,0.93354485,3109.5,3109.1,0.18151145]
[1767867370513,0.93354485,3109.4,3109.1,0.18151145]
[1767867370718,0.93354485,3109.4,3108.9,0.846]
[1767867371633,0.93354485,3109.4,3108.9,1.81511446]
[1767867371935,0.93454485,3109.6,3108.9,1.81511446]
[1767867372144,0.93354485,3109.5,3108.9,1.81511446]
[1767867373522,0.93354485,3109.4,3108.9,0.002]
[1767867375303,0.93354485,3109.3,3108.9,0.002]
[1767867376228,0.93354485,3109.3,3108.5,0.002]
[1767867377912,0.93354485,3109.1,3108.5,0.002]
[1767867378741,4.14974107,3109.3,3108.5,0.97111446]
[1767867379044,4.14974107,3109.3,3108.4,4.06106343]
[1767867379045,0.93354485,3108.7,3107.9,0.96911446]
[1767867379208,0.93354485,3108.5,3107.9,0.96911446]
[1767867379410,0.93354485,3108.5,3107.9,0.15911446]
[1767867379631,0.93354485,3109.1,3108.0,3.53823309]
[1767867379826,0.93354485,3108.9,3108.1,0.32079235]
[1767867380522,0.93354485,3108.9,3107.9,3.21758746]
[1767867380726,0.93354485,3108.8,3107.9,3.21758746]
[1767867381843,0.93354485,3108.7,3107.9,3.21758746]
[1767867382043,0.93354485,3108.7,3107.9,3.53837981]
[1767867382223,0.93354485,3108.7,3107.9,0.32079235]
[1767867383434,0.93354485,3108.7,3108.4,0.002]
[1767867385727,0.93354485,3108.6,3108.4,0.002]
[1767867385915,0.93354485,3108.6,3108.0,0.002]
[1767867386324,4.15045318,3108.6,3108.0,0.002]
[1767867386522,0.93354485,3108.5,3108.0,0.002]
[1767867388838,0.93354485,3108.5,3108.0,0.40836037]
[1767867391228,0.93354485,3108.5,3108.0,0.002]
[1767867392169,0.93354485,3108.5,3108.0,3.21949204]
[1767867394471,0.91849397,3109.5,3108.3,4.20420279]
[1767867394685,0.91849397,3109.5,3108.4,0.85421258]
[1767867394856,0.91849397,3109.5,3108.5,0.50584154]
[1767867395460,0.91849397,3109.3,3108.5,0.50584154]
[1767867395648,0.001,3108.6,3108.5,0.50584154]
[1767867395837,0.001,3108.6,3108.5,1.49285166]
[1767867396247,0.001,3108.6,3108.5,0.50584154]
[1767867396448,0.001,3108.6,3108.4,0.844]
[1767867396947,0.001,3108.6,3108.4,4.06108289]
[1767867398065,0.001,3108.6,3108.4,5.04809301]
[1767867398433,0.001,3108.6,3108.5,0.844]
[1767867399680,0.91949397,3108.6,3108.0,3.782]
[1767867399853,0.91949397,3108.6,3108.1,0.47690101]
[1767867400257,0.91949397,3108.6,3108.0,4.626]
[1767867400669,0.91849397,3108.5,3108.0,4.626]
[1767867401355,0.91849397,3108.5,3108.0,0.846]
[1767867404875,0.91849397,3108.5,3108.0,0.846]
[1767867407479,0.91849397,3108.5,3108.3,0.002]
[1767867413276,0.001,3108.6,3108.3,0.002]
[1767867413475,0.36949397,3108.7,3108.3,0.002]
[1767867413991,3.25672538,3109.0,3108.3,0.98901012]
[1767867414495,0.91849397,3108.9,3108.3,0.98901012]
[1767867414782,0.91849397,3109.0,3108.3,0.98901012]
[1767867415000,0.94849147,3109.0,3108.3,0.98901012]
[1767867417393,3.21657177,3108.9,3108.3,0.98901012]
[1767867418294,4.13506574,3108.9,3108.3,0.98901012]
[1767867418976,4.13506574,3108.9,3108.3,1.40965079]
[1767867419176,4.13506574,3108.9,3108.3,0.98901012]
[1767867419690,0.001,3109.2,3108.5,0.98701012]
[1767867419895,0.001,3109.2,3108.6,0.98701012]
[1767867420194,0.001,3109.2,3108.7,0.98701012]
[1767867421298,0.001,3109.6,3109.2,0.98701012]
[1767867421800,0.91949397,3109.6,3108.9,0.98701012]
[1767867421999,0.91849397,3109.4,3108.6,0.98701012]
[1767867422166,0.91849397,3109.4,3108.8,0.844]
[1767867422566,0.91849397,3109.4,3108.5,0.92791993]
[1767867422766,0.93918841,3109.2,3108.3,0.846]
[1767867422999,0.93918841,3109.0,3108.3,1.77391993]
[1767867423782,0.96918591,3109.0,3108.3,1.77391993]
[1767867423989,0.96918591,3109.0,3108.3,0.92991993]
[1767867424307,0.92792168,3108.9,3108.3,1.77391993]
[1767867424475,0.92792168,3108.9,3108.4,0.49912156]
[1767867424886,0.0299975,3109.0,3108.4,0.49912156]
[1767867425088,0.95791918,3109.1,3108.4,1.4001147]
[1767867425697,0.95791918,3109.1,3108.4,4.6171423]
[1767867425882,3.24620622,3109.3,3108.5,0.90099314]
[1767867426202,3.24620622,3109.3,3108.6,0.90099314]
[1767867430377,0.92792168,3109.2,3108.4,3.21708481]
[1767867430587,3.24620622,3109.3,3108.5,0.90099314]
[1767867430588,0.92792168,3109.1,3108.5,0.90099314]
[1767867431983,0.92792168,3109.1,3108.7,0.002]
[1767867432709,3.24620622,3109.3,3108.7,0.002]
[1767867432884,3.21688175,3109.6,3108.7,0.93516092]
[1767867433079,3.21688175,3109.6,3108.9,0.90099314]
[1767867433080,3.24687925,3109.6,3108.9,0.90099314]
[1767867434108,6.462761,3109.6,3108.9,0.90099314]
[1767867434315,3.62546241,3109.5,3108.9,0.90099314]
[1767867434517,3.62546241,3109.5,3108.5,3.21691427]
[1767867434518,4.55338409,3109.1,3108.4,0.90299314]
[1767867434681,3.62546241,3108.9,3108.4,0.90299314]
[1767867435017,3.21638215,3109.1,3108.5,1.07589245]
[1767867435197,3.24637965,3109.1,3108.5,1.07589245]
[1767867435400,0.0299975,3109.1,3108.5,1.07589245]
[1767867435711,3.24636774,3109.1,3108.5,1.07589245]
[1767867436025,3.62546241,3108.8,3108.4,0.002]
[1767867436231,3.62546241,3108.6,3108.0,0.002]
[1767867437028,7.77006839,3108.8,3108.0,0.90299314]
[1767867439230,3.21659233,3108.9,3108.1,0.93316713]
[1767867439231,3.21662694,3108.9,3108.1,0.93316713]
[1767867439436,3.21662694,3108.9,3108.1,0.90099314]
[1767867439724,3.21662694,3108.9,3108.3,0.90099314]
[1767867440623,3.21646831,3109.0,3108.3,0.90099314]
[1767867442931,3.21605454,3109.4,3108.3,0.90099314]
[1767867443223,3.21605454,3109.4,3108.5,0.90099314]
[1767867443444,0.92892168,3109.6,3108.9,0.90099314]
[1767867443445,0.001,3109.6,3108.9,0.90099314]
[1767867443596,0.001,3109.6,3109.1,0.90099314]
[1767867443796,0.001,3109.6,3109.2,0.90099314]
[1767867444528,0.001,3109.6,3109.1,0.844]
[1767867445035,0.001,3109.6,3109.2,0.90099314]
[1767867445237,0.001,3109.6,3109.4,0.90099314]
[1767867445796,0.001,3109.6,3109.1,1.74499314]
[1767867446700,0.001,3109.6,3109.1,4.96134532]
[1767867447116,0.001,3109.6,3109.2,0.90099314]
[1767867448624,0.001,3109.6,3109.1,0.844]
[1767867449833,0.001,3109.6,3109.2,0.40604579]
[1767867450138,0.001,3109.6,3109.1,0.844]
[1767867450637,0.001,3109.6,3109.1,1.74499314]
[1767867451020,0.001,3109.6,3109.1,0.844]
[1767867451610,0.95891918,3109.6,3109.1,0.844]
[1767867452014,0.95891918,3109.6,3109.0,0.844]
[1767867452420,0.95891918,3109.6,3108.9,0.844]
[1767867452622,0.95891918,3109.6,3109.0,0.17449931]
[1767867453120,4.17479665,3109.6,3109.0,0.17449931]
[1767867453319,3.62546241,3109.1,3108.2,0.9160405]
[1767867453626,0.90674129,3109.3,3108.3,0.844]
[1767867453627,3.62546241,3108.9,3108.3,0.844]
[1767867453829,0.90674129,3108.8,3108.0,3.21945731]
[1767867454035,3.62546241,3108.7,3108.1,0.9160405]
[1767867454240,3.62546241,3108.7,3108.0,0.002]
[1767867454441,3.62546241,3108.3,3108.0,0.002]
[1767867454642,4.5322037,3108.6,3108.0,0.002]
[1767867454946,0.90674129,3108.6,3108.0,0.002]
[1767867455132,3.21677871,3108.7,3108.0,0.9180405]
[1767867455340,4.31335049,3108.7,3108.0,0.9180405]
[1767867455654,0.90674129,3109.0,3108.2,0.9160405]
[1767867455865,3.21638851,3109.1,3108.3,0.9160405]
[1767867456027,3.21638851,3109.1,3108.3,0.94821242]
[1767867456214,3.21638851,3109.1,3108.3,0.9160405]
[1767867456559,3.21619176,3109.3,3108.4,0.94821139]
[1767867457008,0.001,3108.6,3108.4,0.9160405]
[1767867457956,3.21605454,3109.4,3108.6,0.9160405]
[1767867459169,0.001,3109.6,3108.7,0.9160405]
[1767867459374,0.0309975,3109.6,3108.7,1.09526154]
[1767867460228,3.62546241,3109.1,3108.5,0.9160405]
[1767867460535,3.62546241,3109.1,3108.5,1.7600405]
[1767867461336,3.62546241,3108.9,3108.3,0.002]
[1767867461570,3.62546241,3108.7,3108.3,0.002]
[1767867462038,3.62546241,3108.5,3108.0,0.002]
[1767867462244,3.62346242,3108.5,3108.0,0.002]
[1767867462556,0.36234624,3108.4,3108.0,0.002]
[1767867462726,6.43274906,3109.1,3108.0,0.002]
[1767867462926,0.90674129,3108.7,3108.0,0.002]
[1767867463729,3.21674906,3108.8,3108.0,0.9180405]
[1767867465380,4.12332548,3108.9,3108.0,0.9180405]
[1767867465750,0.90674129,3108.9,3108.1,0.9160405]
[1767867466056,0.90674129,3109.2,3108.3,0.9160405]
[1767867466436,0.90674129,3109.2,3108.4,0.03217089]
[1767867466637,4.15303158,3109.2,3108.3,0.9160405]
[1767867466863,0.93673879,3109.2,3108.3,0.9160405]
[1767867467067,0.93673879,3109.2,3108.4,0.25275119]
[1767867467068,0.0299975,3109.1,3108.4,0.25275119]
[1767867467262,0.90674129,3109.2,3108.4,0.25275119]
[1767867467473,0.90674129,3109.2,3108.4,4.38585015]
[1767867467679,0.0299975,3109.1,3108.4,1.16879169]
[1767867468056,4.12301756,3109.2,3108.4,1.16879169]
[1767867468263,0.0299975,3109.1,3108.5,0.43858822]
[1767867468448,0.93673879,3109.1,3108.5,0.43858822]
[1767867468640,0.93673879,3109.1,3108.4,0.25275119]
[1767867469349,0.001,3108.9,3108.4,0.25275119]
[1767867469553,0.001,3108.9,3108.4,1.16879169]
[1767867469958,0.001,3108.9,3108.5,0.9160405]
[1767867472291,0.001,3108.9,3108.3,0.846]
[1767867472292,0.001,3108.9,3108.3,0.9180405]
[1767867472494,0.0309975,3108.9,3108.3,0.9180405]
[1767867474263,0.001,3108.9,3108.4,1.41397364]
[1767867476478,0.001,3108.9,3108.5,0.9160405]
[1767867478416,3.2168511,3109.6,3108.9,0.9160405]
[1767867478619,0.001,3109.6,3108.9,1.7600405]
[1767867478910,0.0309975,3109.6,3109.0,0.9160405]
[1767867480095,0.001,3109.6,3109.0,0.9160405]
[1767867480887,0.001,3109.6,3109.1,0.9160405]
[1767867483777,0.001,3109.6,3109.0,1.46925839]
[1767867484709,0.001,3109.6,3108.8,0.844]
[1767867484710,0.97082616,3109.4,3108.8,0.844]
[1767867484910,0.97082616,3109.1,3108.5,6.99693274]
[1767867485328,0.97082616,3109.1,3108.6,3.21687538]
[1767867485634,0.97082616,3109.1,3108.7,0.69968754]
[1767867487833,0.97082616,3109.3,3108.7,0.69968754]
[1767867488030,0.0299975,3109.2,3108.7,0.69968754]
[1767867488430,1.00082366,3109.3,3108.7,3.91645992]
[1767867488625,0.97082616,3109.3,3108.7,4.88806222]
[1767867488819,6.87166655,3109.6,3108.9,0.9716023]
[1767867489137,7.81249521,3109.6,3108.9,0.9716023]
[1767867489512,0.97082616,3109.5,3108.7,3.21675942]
[1767867489815,1.00082366,3109.4,3108.6,4.18843788]
[1767867490138,1.00082366,3109.4,3108.7,3.21673304]
[1767867490336,1.00082366,3109.4,3108.8,3.95718302]
[1767867490832,0.97082616,3109.4,3108.8,3.95718302]
[1767867492135,0.97082616,3109.4,3108.8,4.92878532]
[1767867492350,0.001,3109.6,3109.0,0.9716023]
[1767867492506,0.001,3109.3,3108.9,0.844]
[1767867492719,0.001,3109.3,3109.0,0.5791223]
[1767867493241,0.001,3109.3,3108.9,0.844]
[1767867493447,0.97182616,3109.3,3108.6,0.9716023]
[1767867493620,1.00182366,3109.3,3108.5,4.06293004]
[1767867493821,1.00182366,3109.3,3108.5,0.9736023]
[1767867494646,0.97182616,3109.3,3108.5,0.9736023]
[1767867494844,1.43152584,3109.3,3108.6,0.03216882]
[1767867495149,1.43152584,3109.3,3108.6,0.9716023]
[1767867495317,3.67688507,3109.3,3108.5,0.03416985]
[1767867495520,0.97082616,3108.8,3108.0,4.19102419]
[1767867495755,0.97082616,3108.8,3108.1,3.21738695]
[1767867495930,0.97082616,3108.8,3108.1,0.9716023]
[1767867496554,0.97082616,3108.8,3108.1,4.18900198]
[1767867497145,0.97082616,3108.8,3108.1,0.9716023]
[1767867498221,0.97082616,3108.8,3108.1,4.18900024]
[1767867500049,0.97082616,3108.8,3108.2,0.9716023]
[1767867500274,0.0299975,3109.1,3108.3,0.9716023]
[1767867500447,4.18715757,3109.2,3108.3,0.9716023]
[1767867500643,0.97082616,3109.1,3108.3,0.9716023]
[1767867500843,0.0299975,3109.0,3108.3,0.9716023]
[1767867501451,0.97082616,3109.1,3108.3,0.9716023]
[1767867501773,3.21633141,3109.2,3108.5,0.9716023]
[1767867501957,0.39770061,3109.1,3108.5,0.9716023]
[1767867502160,3.61407447,3109.1,3108.5,0.9716023]
[1767867502870,0.97082616,3109.0,3108.1,0.9716023]
[1767867503039,0.0299975,3108.9,3108.2,1.8156023]
[1767867503234,0.0299975,3108.9,3108.3,0.9716023]
[1767867503660,0.48848756,3108.9,3108.3,0.9716023]
[1767867504062,0.45849006,3108.9,3108.3,0.9716023]
[1767867504570,1.00082366,3109.0,3108.3,0.9716023]
[1767867504872,0.001,3108.8,3108.4,0.9716023]
[1767867506972,0.001,3108.8,3108.5,1.00377215]
[1767867507272,0.001,3108.8,3108.5,0.9716023]
[1767867507781,0.001,3108.8,3108.4,0.844]
[1767867509986,0.001,3108.8,3108.4,1.8156023]
[1767867512087,0.001,3108.8,3108.0,3.21947929]
[1767867512088,0.97082616,3108.7,3108.0,0.846]
[1767867512385,0.97082616,3108.7,3108.0,0.002]
[1767867512386,1.00082366,3108.7,3108.0,0.002]
[1767867513172,4.21767995,3108.7,3108.0,0.002]
[1767867513373,0.99654198,3108.6,3108.0,0.002]
[1767867513961,0.99654198,3108.6,3108.0,0.97123037]
[1767867515773,0.99654198,3108.5,3108.0,0.002]
[1767867516001,0.99654198,3108.5,3107.4,0.96923037]
[1767867516201,0.99654198,3108.5,3107.6,0.844]
[1767867516707,0.99654198,3108.5,3108.3,0.002]
[1767867516886,0.99654198,3108.5,3108.0,0.002]
[1767867517081,1.4924959,3108.4,3108.0,0.002]
[1767867517605,4.21373465,3108.3,3108.0,0.002]
[1767867517799,7.43092732,3108.3,3108.0,0.002]
[1767867518000,0.99654198,3108.3,3108.0,0.002]
[1767867518304,3.21711027,3108.4,3108.0,0.002]
[1767867518506,0.74307096,3108.3,3108.0,0.002]
[1767867519480,3.96032378,3108.3,3108.0,0.002]
[1767867519681,4.95686576,3108.3,3108.0,0.002]
[1767867521230,1.73961294,3108.3,3108.0,0.002]
[1767867521523,4.21347325,3108.6,3108.0,0.002]
[1767867521698,0.0299975,3108.5,3108.0,0.002]
[1767867522092,1.02653948,3108.5,3108.0,0.002]
[1767867522716,0.99654198,3108.5,3108.0,0.002]
[1767867522914,1.02653948,3108.5,3108.0,0.002]
[1767867523319,0.74604068,3108.4,3108.0,0.002]
[1767867524399,4.21336253,3108.7,3108.0,0.97123037]
[1767867524600,0.001,3108.8,3108.2,0.96923037]
[1767867525407,0.0309975,3108.8,3108.2,0.96923037]
[1767867525606,3.24767988,3108.8,3108.2,0.96923037]
[1767867525827,0.0309975,3108.8,3108.2,0.96923037]
[1767867526006,0.0309975,3108.8,3108.3,0.96923037]
[1767867526007,0.001,3108.8,3108.3,0.96923037]
[1767867526493,0.0309975,3108.8,3108.3,0.96923037]
[1767867527432,0.001,3108.8,3108.3,0.96923037]